[Event "Titled Tuesday Blitz June 13 Late 2023"]
[White "Khoroshev, Nikita"]
[Black "Ozalp, Burak"]
[WhiteFideId "14200287"]
[BlackFideId "6314210"]
[WhiteElo "2354"]
[BlackElo "2106"]
[Result "1-0"]
[Round "1"]
[TimeControl "180+2"]
[Date "2023.06.13"]
[WhiteClock "0:01:03"]
[BlackClock "0:00:04"]
[Board "96"]

1. e4 {[%clk 0:02:59]}  c6 {[%clk 0:02:59]} 2. Nf3 {[%clk 0:02:59]}  d5 {[%clk 0:03:00]} 3. Nc3 {[%clk 0:03:00]}  dxe4 {[%clk 0:02:59]} 4. Nxe4 {[%clk 0:03:01]}  Nf6 {[%clk 0:03:00]} 5. Nxf6+ {[%clk 0:03:01]}  exf6 {[%clk 0:03:00]} 6. Bc4 {[%clk 0:03:02]}  Bd6 {[%clk 0:02:47]} 7. Qe2+ {[%clk 0:03:02]}  Qe7 {[%clk 0:02:44]} 8. Qxe7+ {[%clk 0:03:02]}  Bxe7 {[%clk 0:02:44]} 9. O-O {[%clk 0:03:02]}  O-O {[%clk 0:02:41]} 10. Re1 {[%clk 0:03:02]}  Bd6 {[%clk 0:02:39]} 11. h3 {[%clk 0:03:03]}  Bf5 {[%clk 0:02:37]} 12. d3 {[%clk 0:02:59]}  Nd7 {[%clk 0:02:35]} 13. Nh4 {[%clk 0:02:59]}  Bg6 {[%clk 0:02:29]} 14. Nxg6 {[%clk 0:02:58]}  hxg6 {[%clk 0:02:29]} 15. Bd2 {[%clk 0:02:58]}  a5 {[%clk 0:02:23]} 16. a4 {[%clk 0:02:57]}  Rfe8 {[%clk 0:02:21]} 17. Rxe8+ {[%clk 0:02:55]}  Rxe8 {[%clk 0:02:20]} 18. Kf1 {[%clk 0:02:54]}  Bb4 {[%clk 0:02:12]} 19. c3 {[%clk 0:02:53]}  Bd6 {[%clk 0:02:09]} 20. d4 {[%clk 0:02:54]}  f5 {[%clk 0:02:05]} 21. Re1 {[%clk 0:02:53]}  Rb8 {[%clk 0:01:54]} 22. Bd3 {[%clk 0:02:48]}  Nf6 {[%clk 0:01:47]} 23. c4 {[%clk 0:02:46]}  Bb4 {[%clk 0:01:41]} 24. Bxb4 {[%clk 0:02:43]}  axb4 {[%clk 0:01:42]} 25. Bc2 {[%clk 0:02:42]}  Kf8 {[%clk 0:01:39]} 26. Rd1 {[%clk 0:02:40]}  Rd8 {[%clk 0:01:37]} 27. Ke2 {[%clk 0:02:40]}  Ke7 {[%clk 0:01:37]} 28. Kd3 {[%clk 0:02:24]}  Kd6 {[%clk 0:01:37]} 29. Re1 {[%clk 0:02:24]}  b6 {[%clk 0:01:32]} 30. Re2 {[%clk 0:02:22]}  Re8 {[%clk 0:01:19]} 31. Rxe8 {[%clk 0:02:21]}  Nxe8 {[%clk 0:01:19]} 32. Bb3 {[%clk 0:02:20]}  c5 {[%clk 0:01:19]} 33. Bd1 {[%clk 0:02:12]}  Nc7 {[%clk 0:01:15]} 34. dxc5+ {[%clk 0:01:48]}  Kxc5 {[%clk 0:01:12]} 35. Bf3 {[%clk 0:01:49]}  Ne8 {[%clk 0:00:42]} 36. Bd5 {[%clk 0:01:46]}  Nd6 {[%clk 0:00:42]} 37. b3 {[%clk 0:01:46]}  f6 {[%clk 0:00:41]} 38. h4 {[%clk 0:01:38]}  g5 {[%clk 0:00:40]} 39. hxg5 {[%clk 0:01:32]}  fxg5 {[%clk 0:00:39]} 40. Be6 {[%clk 0:01:31]}  g6 {[%clk 0:00:23]} 41. f3 {[%clk 0:01:31]}  Nb7 {[%clk 0:00:13]} 42. Bf7 {[%clk 0:01:30]}  Na5 {[%clk 0:00:14]} 43. Kc2 {[%clk 0:01:27]}  f4 {[%clk 0:00:13]} 44. Bxg6 {[%clk 0:01:24]}  Kd4 {[%clk 0:00:13]} 45. Bf7 {[%clk 0:01:20]}  Ke3 {[%clk 0:00:13]} 46. Bd5 {[%clk 0:01:18]}  Kf2 {[%clk 0:00:12]} 47. c5 {[%clk 0:01:12]}  bxc5 {[%clk 0:00:11]} 48. Kd3 {[%clk 0:01:12]}  Kxg2 {[%clk 0:00:10]} 49. Ke4 {[%clk 0:01:13]}  Kf2 {[%clk 0:00:10]} 50. Kf5 {[%clk 0:01:12]}  Ke3 {[%clk 0:00:10]} 51. Kxg5 {[%clk 0:01:13]}  Kd4 {[%clk 0:00:10]} 52. Be6 {[%clk 0:01:13]}  c4 {[%clk 0:00:11]} 53. bxc4 {[%clk 0:01:12]}  Nxc4 {[%clk 0:00:12]} 54. Kxf4 {[%clk 0:01:11]}  b3 {[%clk 0:00:12]} 55. Bf5 {[%clk 0:01:09]}  Ne3 {[%clk 0:00:11]} 56. Be4 {[%clk 0:01:06]}  b2 {[%clk 0:00:10]} 57. a5 {[%clk 0:01:06]}  Nd5+ {[%clk 0:00:11]} 58. Kg5 {[%clk 0:01:05]}  Nb4 {[%clk 0:00:10]} 59. Bb1 {[%clk 0:01:02]}  Ke5 {[%clk 0:00:10]} 60. f4+ {[%clk 0:01:03]}  Ke6 {[%clk 0:00:11]} 61. Kg6 {[%clk 0:01:02]}  Ke7 {[%clk 0:00:10]} 62. Kg7 {[%clk 0:01:02]}  Nc6 {[%clk 0:00:08]} 63. a6 {[%clk 0:01:02]}  Na7 {[%clk 0:00:04]} 64. f5 {[%clk 0:01:02]}  Nc8 {[%clk 0:00:03]} 65. f6+ {[%clk 0:01:03]}  Ke6 {[%clk 0:00:03]} 66. f7 {[%clk 0:01:03]}  Ne7 {[%clk 0:00:03]} 67. f8=Q {[%clk 0:01:03]}  Nf5+ {[%clk 0:00:04]} 68. Kh8 {[%clk 0:01:03]} 1-0


[Site "https://www.chess.com"]

[Event "Titled Tuesday Blitz June 13 Late 2023"]
[White "Zenin, Dmitry"]
[Black "Maatman, Nick"]
[WhiteFideId "4127897"]
[BlackFideId "1040391"]
[WhiteElo "2215"]
[BlackElo "2715"]
[Result "0-1"]
[Round "1"]
[TimeControl "180+2"]
[Date "2023.06.13"]
[WhiteClock "0:00:00"]
[BlackClock "0:00:12"]
[Board "97"]

1. d4 {[%clk 0:03:00]}  Nf6 {[%clk 0:02:57]} 2. c4 {[%clk 0:03:00]}  e6 {[%clk 0:02:57]} 3. Nc3 {[%clk 0:03:00]}  Bb4 {[%clk 0:02:57]} 4. Qc2 {[%clk 0:03:01]}  d5 {[%clk 0:02:56]} 5. cxd5 {[%clk 0:03:00]}  exd5 {[%clk 0:02:57]} 6. Bg5 {[%clk 0:03:00]}  h6 {[%clk 0:02:52]} 7. Bh4 {[%clk 0:02:59]}  O-O {[%clk 0:02:50]} 8. e3 {[%clk 0:02:59]}  c5 {[%clk 0:02:47]} 9. dxc5 {[%clk 0:02:58]}  Nc6 {[%clk 0:02:40]} 10. Nf3 {[%clk 0:02:53]}  Bg4 {[%clk 0:02:35]} 11. Be2 {[%clk 0:02:53]}  g5 {[%clk 0:02:25]} 12. Bg3 {[%clk 0:02:52]}  Ne4 {[%clk 0:01:55]} 13. O-O {[%clk 0:02:45]}  Nxc3 {[%clk 0:01:46]} 14. bxc3 {[%clk 0:02:45]}  Bxc5 {[%clk 0:01:46]} 15. Rfd1 {[%clk 0:02:24]}  Rc8 {[%clk 0:01:45]} 16. Qb3 {[%clk 0:02:17]}  Bb6 {[%clk 0:01:30]} 17. Rxd5 {[%clk 0:02:05]}  Qf6 {[%clk 0:01:29]} 18. Rd6 {[%clk 0:01:58]}  Qg7 {[%clk 0:01:29]} 19. Rc1 {[%clk 0:01:49]}  Rfd8 {[%clk 0:01:27]} 20. c4 {[%clk 0:01:39]}  Be6 {[%clk 0:01:10]} 21. Qa3 {[%clk 0:01:25]}  Rxd6 {[%clk 0:00:52]} 22. Bxd6 {[%clk 0:01:23]}  Ba5 {[%clk 0:00:44]} 23. c5 {[%clk 0:01:07]}  Bb4 {[%clk 0:00:41]} 24. Qa4 {[%clk 0:01:06]}  Qb2 {[%clk 0:00:37]} 25. Qc2 {[%clk 0:00:51]}  Qxa2 {[%clk 0:00:34]} 26. Qxa2 {[%clk 0:00:45]}  Bxa2 {[%clk 0:00:35]} 27. h4 {[%clk 0:00:44]}  g4 {[%clk 0:00:29]} 28. Nd4 {[%clk 0:00:44]}  h5 {[%clk 0:00:25]} 29. Nxc6 {[%clk 0:00:38]}  Rxc6 {[%clk 0:00:21]} 30. Ra1 {[%clk 0:00:38]}  Bd5 {[%clk 0:00:21]} 31. Rxa7 {[%clk 0:00:32]}  b6 {[%clk 0:00:22]} 32. Bb5 {[%clk 0:00:18]}  Rc8 {[%clk 0:00:22]} 33. Bd7 {[%clk 0:00:17]}  Ra8 {[%clk 0:00:15]} 34. Rxa8+ {[%clk 0:00:16]}  Bxa8 {[%clk 0:00:16]} 35. f3 {[%clk 0:00:12]}  gxf3 {[%clk 0:00:15]} 36. gxf3 {[%clk 0:00:12]}  Bxf3 {[%clk 0:00:15]} 37. Kf2 {[%clk 0:00:12]}  Be4 {[%clk 0:00:15]} 38. Be5 {[%clk 0:00:09]}  Bxc5 {[%clk 0:00:15]} 39. Bb5 {[%clk 0:00:09]}  Kh7 {[%clk 0:00:15]} 40. Be2 {[%clk 0:00:08]}  Kg6 {[%clk 0:00:15]} 41. Bc7 {[%clk 0:00:09]}  Bf5 {[%clk 0:00:14]} 42. Bf3 {[%clk 0:00:08]}  Bg4 {[%clk 0:00:14]} 43. Ke2 {[%clk 0:00:07]}  Bxf3+ {[%clk 0:00:14]} 44. Kxf3 {[%clk 0:00:07]}  Kf5 {[%clk 0:00:14]} 45. e4+ {[%clk 0:00:07]}  Ke6 {[%clk 0:00:14]} 46. Kf4 {[%clk 0:00:06]}  b5 {[%clk 0:00:15]} 47. Kg5 {[%clk 0:00:07]}  Bd6 {[%clk 0:00:13]} 48. Ba5 {[%clk 0:00:06]}  Ke5 {[%clk 0:00:13]} 49. Kxh5 {[%clk 0:00:04]}  Kxe4 {[%clk 0:00:14]} 50. Kg5 {[%clk 0:00:05]}  b4 {[%clk 0:00:14]} 51. h5 {[%clk 0:00:05]}  b3 {[%clk 0:00:13]} 52. Bc3 {[%clk 0:00:05]}  Bf4+ {[%clk 0:00:12]} 53. Kg4 {[%clk 0:00:05]}  Bh6 {[%clk 0:00:12]} 54. Bb2 {[%clk 0:00:03]}  f5+ {[%clk 0:00:12]} 55. Kh4 {[%clk 0:00:00]}  Kd3 {[%clk 0:00:12]} 0-1


[Site "https://www.chess.com"]

[Event "Titled Tuesday Blitz June 13 Late 2023"]
[White "Fajdetic, Hrvoje"]
[Black "Makridis, Dimitrios"]
[WhiteFideId "14501945"]
[BlackFideId "25864475"]
[WhiteElo "2185"]
[BlackElo "2277"]
[Result "0-1"]
[Round "1"]
[TimeControl "180+2"]
[Date "2023.06.13"]
[WhiteClock "0:00:07"]
[BlackClock "0:02:04"]
[Board "99"]

1. d4 {[%clk 0:02:58]}  Nf6 {[%clk 0:02:58]} 2. Bf4 {[%clk 0:02:57]}  d6 {[%clk 0:02:42]} 3. Nc3 {[%clk 0:02:56]}  Nbd7 {[%clk 0:02:40]} 4. Nf3 {[%clk 0:02:53]}  g6 {[%clk 0:02:38]} 5. e4 {[%clk 0:02:52]}  c5 {[%clk 0:02:38]} 6. d5 {[%clk 0:02:26]}  Bg7 {[%clk 0:02:38]} 7. Be2 {[%clk 0:02:21]}  b5 {[%clk 0:02:38]} 8. Bxb5 {[%clk 0:02:17]}  Rb8 {[%clk 0:02:38]} 9. Bxd7+ {[%clk 0:02:16]}  Nxd7 {[%clk 0:02:36]} 10. Rb1 {[%clk 0:01:25]}  Rxb2 {[%clk 0:02:32]} 11. Rxb2 {[%clk 0:01:26]}  Bxc3+ {[%clk 0:02:32]} 12. Bd2 {[%clk 0:01:25]}  Bxb2 {[%clk 0:02:32]} 13. c3 {[%clk 0:01:24]}  Qa5 {[%clk 0:02:28]} 14. Qb3 {[%clk 0:01:20]}  Ba3 {[%clk 0:02:23]} 15. O-O {[%clk 0:01:09]}  O-O {[%clk 0:02:19]} 16. c4 {[%clk 0:00:40]}  Bb4 {[%clk 0:02:19]} 17. Bh6 {[%clk 0:00:40]}  Re8 {[%clk 0:02:16]} 18. Rb1 {[%clk 0:00:35]}  Bc3 {[%clk 0:02:08]} 19. Qb5 {[%clk 0:00:12]}  Qxb5 {[%clk 0:02:08]} 20. Rxb5 {[%clk 0:00:13]}  Ba6 {[%clk 0:02:06]} 21. a4 {[%clk 0:00:11]}  Bxb5 {[%clk 0:02:06]} 22. cxb5 {[%clk 0:00:12]}  a6 {[%clk 0:02:04]} 23. bxa6 {[%clk 0:00:11]}  Ra8 {[%clk 0:02:05]} 24. Bd2 {[%clk 0:00:08]}  Bxd2 {[%clk 0:02:04]} 25. Nxd2 {[%clk 0:00:07]}  Rxa6 {[%clk 0:02:04]} 0-1


[Site "https://www.chess.com"]

[Event "Titled Tuesday Blitz June 13 Late 2023"]
[White "Rastbod, Ali"]
[Black "Prieto Aranguren, Alain"]
[WhiteFideId "12567477"]
[BlackFideId "2268906"]
[WhiteElo "2281"]
[BlackElo "2209"]
[Result "1-0"]
[Round "1"]
[TimeControl "180+2"]
[Date "2023.06.13"]
[WhiteClock "0:01:20"]
[BlackClock "0:00:13"]
[Board "100"]

1. d4 {[%clk 0:02:59]}  Nf6 {[%clk 0:02:58]} 2. Bg5 {[%clk 0:02:59]}  g6 {[%clk 0:02:56]} 3. Bxf6 {[%clk 0:02:59]}  exf6 {[%clk 0:02:56]} 4. c4 {[%clk 0:02:59]}  Bg7 {[%clk 0:02:53]} 5. Nc3 {[%clk 0:03:00]}  O-O {[%clk 0:02:53]} 6. e3 {[%clk 0:03:00]}  f5 {[%clk 0:02:53]} 7. g3 {[%clk 0:03:01]}  c5 {[%clk 0:02:51]} 8. Nge2 {[%clk 0:03:00]}  cxd4 {[%clk 0:02:47]} 9. Nxd4 {[%clk 0:02:59]}  Nc6 {[%clk 0:02:45]} 10. Ndb5 {[%clk 0:02:57]}  a6 {[%clk 0:02:37]} 11. Nd6 {[%clk 0:02:56]}  Qa5 {[%clk 0:02:33]} 12. Qd2 {[%clk 0:02:49]}  Ne5 {[%clk 0:02:19]} 13. Bg2 {[%clk 0:02:44]}  Qb4 {[%clk 0:02:04]} 14. O-O {[%clk 0:02:08]}  Nxc4 {[%clk 0:02:00]} 15. Nxc4 {[%clk 0:02:09]}  Qxc4 {[%clk 0:02:00]} 16. Nd5 {[%clk 0:02:03]}  Rb8 {[%clk 0:01:48]} 17. Rac1 {[%clk 0:01:59]}  Qb5 {[%clk 0:01:47]} 18. Qc2 {[%clk 0:01:44]}  d6 {[%clk 0:01:34]} 19. Ne7+ {[%clk 0:01:36]}  Kh8 {[%clk 0:01:24]} 20. Nxc8 {[%clk 0:01:37]}  Rbxc8 {[%clk 0:00:59]} 21. Qxc8 {[%clk 0:01:27]}  Rxc8 {[%clk 0:00:58]} 22. Rxc8+ {[%clk 0:01:27]}  Bf8 {[%clk 0:00:59]} 23. Rxf8+ {[%clk 0:01:27]}  Kg7 {[%clk 0:00:59]} 24. Rb8 {[%clk 0:01:28]}  Qxb2 {[%clk 0:00:59]} 25. Rxb7 {[%clk 0:01:28]}  Qxa2 {[%clk 0:00:59]} 26. Rc1 {[%clk 0:01:28]}  a5 {[%clk 0:00:57]} 27. Rcc7 {[%clk 0:01:24]}  a4 {[%clk 0:00:57]} 28. Rxf7+ {[%clk 0:01:23]}  Qxf7 {[%clk 0:00:52]} 29. Rxf7+ {[%clk 0:01:24]}  Kxf7 {[%clk 0:00:53]} 30. Bd5+ {[%clk 0:01:25]}  Kf6 {[%clk 0:00:53]} 31. f4 {[%clk 0:01:25]}  a3 {[%clk 0:00:51]} 32. Kf2 {[%clk 0:01:26]}  h6 {[%clk 0:00:51]} 33. Ke2 {[%clk 0:01:26]}  g5 {[%clk 0:00:51]} 34. Kd2 {[%clk 0:01:25]}  Kg6 {[%clk 0:00:51]} 35. Kc3 {[%clk 0:01:21]}  Kh5 {[%clk 0:00:51]} 36. Bf3+ {[%clk 0:01:20]}  g4 {[%clk 0:00:47]} 37. Bd5 {[%clk 0:01:20]}  Kg6 {[%clk 0:00:47]} 38. Kb3 {[%clk 0:01:20]}  Kf6 {[%clk 0:00:44]} 39. Kxa3 {[%clk 0:01:20]}  Ke7 {[%clk 0:00:44]} 40. Kb4 {[%clk 0:01:20]}  h5 {[%clk 0:00:44]} 41. Kc4 {[%clk 0:01:21]}  Kf6 {[%clk 0:00:38]} 42. Kd4 {[%clk 0:01:21]}  h4 {[%clk 0:00:37]} 43. gxh4 {[%clk 0:01:21]}  Kg6 {[%clk 0:00:37]} 44. e4 {[%clk 0:01:21]}  fxe4 {[%clk 0:00:37]} 45. Kxe4 {[%clk 0:01:17]}  Kh5 {[%clk 0:00:37]} 46. f5 {[%clk 0:01:18]}  Kh6 {[%clk 0:00:35]} 47. f6 {[%clk 0:01:18]}  g3 {[%clk 0:00:34]} 48. hxg3 {[%clk 0:01:19]}  Kg6 {[%clk 0:00:29]} 49. f7 {[%clk 0:01:19]}  Kg7 {[%clk 0:00:28]} 50. Kf5 {[%clk 0:01:19]}  Kf8 {[%clk 0:00:21]} 51. Kg6 {[%clk 0:01:19]}  Ke7 {[%clk 0:00:13]} 52. Kg7 {[%clk 0:01:20]} 1-0


[Site "https://www.chess.com"]

[Event "Titled Tuesday Blitz June 13 Late 2023"]
[White "Fernandez Siles, Luis"]
[Black "Pakleza, Zbigniew"]
[WhiteFideId "2209420"]
[BlackFideId "1119290"]
[WhiteElo "2195"]
[BlackElo "2410"]
[Result "0-1"]
[Round "1"]
[TimeControl "180+2"]
[Date "2023.06.13"]
[WhiteClock "0:00:00"]
[BlackClock "0:00:03"]
[Board "103"]

1. d4 {[%clk 0:02:59]}  d6 {[%clk 0:02:59]} 2. Nf3 {[%clk 0:02:58]}  Bg4 {[%clk 0:02:58]} 3. Nbd2 {[%clk 0:02:55]}  Nf6 {[%clk 0:02:58]} 4. h3 {[%clk 0:02:50]}  Bh5 {[%clk 0:02:57]} 5. e4 {[%clk 0:02:43]}  e6 {[%clk 0:02:56]} 6. c3 {[%clk 0:02:41]}  d5 {[%clk 0:02:50]} 7. e5 {[%clk 0:02:40]}  Nfd7 {[%clk 0:02:50]} 8. Bd3 {[%clk 0:02:21]}  c5 {[%clk 0:02:46]} 9. O-O {[%clk 0:02:10]}  Nc6 {[%clk 0:02:45]} 10. Qa4 {[%clk 0:01:43]}  Be7 {[%clk 0:02:38]} 11. Re1 {[%clk 0:01:37]}  O-O {[%clk 0:02:36]} 12. Bb1 {[%clk 0:01:28]}  Rc8 {[%clk 0:02:23]} 13. dxc5 {[%clk 0:01:28]}  Nxc5 {[%clk 0:02:15]} 14. Qf4 {[%clk 0:01:28]}  Bg6 {[%clk 0:02:10]} 15. Nb3 {[%clk 0:01:05]}  Nd3 {[%clk 0:01:59]} 16. Bxd3 {[%clk 0:01:00]}  Bxd3 {[%clk 0:02:00]} 17. Be3 {[%clk 0:00:57]}  Qc7 {[%clk 0:01:39]} 18. Rad1 {[%clk 0:00:51]}  Bg6 {[%clk 0:01:37]} 19. Qg3 {[%clk 0:00:44]}  Rfd8 {[%clk 0:01:23]} 20. Bg5 {[%clk 0:00:34]}  Qb6 {[%clk 0:01:10]} 21. h4 {[%clk 0:00:22]}  h6 {[%clk 0:01:02]} 22. Bxe7 {[%clk 0:00:21]}  Nxe7 {[%clk 0:01:03]} 23. Qf4 {[%clk 0:00:17]}  a5 {[%clk 0:00:57]} 24. Qd2 {[%clk 0:00:17]}  a4 {[%clk 0:00:34]} 25. Nbd4 {[%clk 0:00:16]}  a3 {[%clk 0:00:34]} 26. b3 {[%clk 0:00:17]}  Qa5 {[%clk 0:00:33]} 27. Rc1 {[%clk 0:00:17]}  Rc7 {[%clk 0:00:33]} 28. g4 {[%clk 0:00:16]}  Rdc8 {[%clk 0:00:33]} 29. Re3 {[%clk 0:00:16]}  Nc6 {[%clk 0:00:26]} 30. Nxc6 {[%clk 0:00:16]}  bxc6 {[%clk 0:00:24]} 31. b4 {[%clk 0:00:16]}  Qa4 {[%clk 0:00:19]} 32. c4 {[%clk 0:00:16]}  Be4 {[%clk 0:00:12]} 33. cxd5 {[%clk 0:00:16]}  cxd5 {[%clk 0:00:11]} 34. Rec3 {[%clk 0:00:16]}  Rxc3 {[%clk 0:00:05]} 35. Rxc3 {[%clk 0:00:17]}  Rb8 {[%clk 0:00:03]} 36. Rb3 {[%clk 0:00:14]}  Bxf3 {[%clk 0:00:03]} 37. Rxf3 {[%clk 0:00:13]}  Qxb4 {[%clk 0:00:04]} 38. Qe3 {[%clk 0:00:11]}  Qxg4+ {[%clk 0:00:03]} 39. Rg3 {[%clk 0:00:10]}  Rb1+ {[%clk 0:00:03]} 40. Kg2 {[%clk 0:00:10]}  Qxh4 {[%clk 0:00:03]} 41. Rh3 {[%clk 0:00:08]}  Qg4+ {[%clk 0:00:03]} 42. Rg3 {[%clk 0:00:08]}  Qh4 {[%clk 0:00:03]} 43. Rh3 {[%clk 0:00:09]}  Qe4+ {[%clk 0:00:02]} 44. Qxe4 {[%clk 0:00:08]}  dxe4 {[%clk 0:00:03]} 45. Rxa3 {[%clk 0:00:08]}  Rb5 {[%clk 0:00:03]} 46. Rb3 {[%clk 0:00:06]}  Rxe5 {[%clk 0:00:02]} 47. a4 {[%clk 0:00:06]}  g5 {[%clk 0:00:01]} 48. Ra3 {[%clk 0:00:06]}  Ra5 {[%clk 0:00:01]} 49. Kf1 {[%clk 0:00:05]}  Kg7 {[%clk 0:00:02]} 50. Ke2 {[%clk 0:00:06]}  h5 {[%clk 0:00:02]} 51. Ke3 {[%clk 0:00:06]}  f5 {[%clk 0:00:02]} 52. Kd4 {[%clk 0:00:06]}  h4 {[%clk 0:00:03]} 53. Kc4 {[%clk 0:00:07]}  Ra8 {[%clk 0:00:02]} 54. a5 {[%clk 0:00:06]}  Kf6 {[%clk 0:00:03]} 55. Kb5 {[%clk 0:00:07]}  Ke5 {[%clk 0:00:03]} 56. a6 {[%clk 0:00:07]}  Kf4 {[%clk 0:00:03]} 57. Kb6 {[%clk 0:00:07]}  g4 {[%clk 0:00:03]} 58. Kb7 {[%clk 0:00:07]}  Rf8 {[%clk 0:00:03]} 59. a7 {[%clk 0:00:07]}  h3 {[%clk 0:00:03]} 60. a8=Q {[%clk 0:00:00]}  Rxa8 {[%clk 0:00:03]} 0-1


[Site "https://www.chess.com"]

[Event "Titled Tuesday Blitz June 13 Late 2023"]
[White "Martinez Ramirez, Lennis"]
[Black "crosky"]
[WhiteFideId "3509079"]
[WhiteElo "2410"]
[BlackElo "2382"]
[Result "1-0"]
[Round "1"]
[TimeControl "180+2"]
[Date "2023.06.13"]
[WhiteClock "0:00:16"]
[BlackClock "0:00:00"]
[Board "104"]

1. Nf3 {[%clk 0:02:56]}  Nf6 {[%clk 0:02:59]} 2. c4 {[%clk 0:02:56]}  e6 {[%clk 0:02:59]} 3. e3 {[%clk 0:02:51]}  d5 {[%clk 0:03:00]} 4. b3 {[%clk 0:02:51]}  Be7 {[%clk 0:02:59]} 5. Bb2 {[%clk 0:02:51]}  O-O {[%clk 0:03:00]} 6. Rg1 {[%clk 0:02:48]}  c5 {[%clk 0:02:56]} 7. g4 {[%clk 0:02:48]}  Nc6 {[%clk 0:02:55]} 8. g5 {[%clk 0:02:49]}  Ne4 {[%clk 0:02:40]} 9. h4 {[%clk 0:02:47]}  f5 {[%clk 0:02:11]} 10. d3 {[%clk 0:02:30]}  Nd6 {[%clk 0:02:11]} 11. Nc3 {[%clk 0:02:20]}  d4 {[%clk 0:02:07]} 12. exd4 {[%clk 0:02:15]}  cxd4 {[%clk 0:02:08]} 13. Ne2 {[%clk 0:02:13]}  e5 {[%clk 0:02:07]} 14. a3 {[%clk 0:02:13]}  Re8 {[%clk 0:01:49]} 15. b4 {[%clk 0:02:00]}  e4 {[%clk 0:01:41]} 16. Nfxd4 {[%clk 0:01:43]}  Nxd4 {[%clk 0:01:42]} 17. Bxd4 {[%clk 0:01:43]}  exd3 {[%clk 0:01:39]} 18. Qxd3 {[%clk 0:01:43]}  Ne4 {[%clk 0:01:33]} 19. O-O-O {[%clk 0:01:37]}  Be6 {[%clk 0:01:28]} 20. f3 {[%clk 0:01:36]}  Rc8 {[%clk 0:01:19]} 21. c5 {[%clk 0:01:36]}  Nxc5 {[%clk 0:00:34]} 22. Bxc5 {[%clk 0:01:34]}  Bxc5 {[%clk 0:00:29]} 23. bxc5 {[%clk 0:01:23]}  Rxc5+ {[%clk 0:00:27]} 24. Nc3 {[%clk 0:01:22]}  Qa5 {[%clk 0:00:22]} 25. Kb2 {[%clk 0:01:22]}  Rec8 {[%clk 0:00:20]} 26. Rc1 {[%clk 0:01:20]}  Qb6+ {[%clk 0:00:17]} 27. Ka1 {[%clk 0:01:19]}  Rxc3 {[%clk 0:00:17]} 28. Rxc3 {[%clk 0:01:17]}  Rxc3 {[%clk 0:00:17]} 29. Qxc3 {[%clk 0:01:17]}  Qxg1 {[%clk 0:00:18]} 30. Qd3 {[%clk 0:01:11]}  f4 {[%clk 0:00:14]} 31. Kb2 {[%clk 0:00:55]}  Qf2+ {[%clk 0:00:14]} 32. Be2 {[%clk 0:00:55]}  Qb6+ {[%clk 0:00:13]} 33. Kc1 {[%clk 0:00:54]}  Qg1+ {[%clk 0:00:13]} 34. Kd2 {[%clk 0:00:54]}  Qa1 {[%clk 0:00:08]} 35. Qd8+ {[%clk 0:00:53]}  Kf7 {[%clk 0:00:08]} 36. Qc7+ {[%clk 0:00:53]}  Kf8 {[%clk 0:00:07]} 37. Qb8+ {[%clk 0:00:51]}  Kf7 {[%clk 0:00:03]} 38. Qxb7+ {[%clk 0:00:52]}  Kf8 {[%clk 0:00:04]} 39. Qa8+ {[%clk 0:00:51]}  Kf7 {[%clk 0:00:04]} 40. Qxa7+ {[%clk 0:00:52]}  Kf8 {[%clk 0:00:05]} 41. Qa8+ {[%clk 0:00:52]}  Kf7 {[%clk 0:00:05]} 42. Qb7+ {[%clk 0:00:52]}  Kf8 {[%clk 0:00:05]} 43. Qb8+ {[%clk 0:00:52]}  Kf7 {[%clk 0:00:06]} 44. Qxf4+ {[%clk 0:00:53]}  Ke7 {[%clk 0:00:04]} 45. Qb4+ {[%clk 0:00:53]}  Kf7 {[%clk 0:00:04]} 46. Ke3 {[%clk 0:00:51]}  Qe5+ {[%clk 0:00:04]} 47. Kd2 {[%clk 0:00:51]}  Qa1 {[%clk 0:00:04]} 48. Bd3 {[%clk 0:00:51]}  Qg1 {[%clk 0:00:03]} 49. Qf4+ {[%clk 0:00:50]}  Ke7 {[%clk 0:00:03]} 50. Bxh7 {[%clk 0:00:50]}  Qf2+ {[%clk 0:00:02]} 51. Kd3 {[%clk 0:00:47]}  Qf1+ {[%clk 0:00:02]} 52. Kc3 {[%clk 0:00:45]}  Qa1+ {[%clk 0:00:02]} 53. Kc2 {[%clk 0:00:38]}  Qa2+ {[%clk 0:00:02]} 54. Kd1 {[%clk 0:00:36]}  Bb3+ {[%clk 0:00:02]} 55. Ke1 {[%clk 0:00:35]}  Qa1+ {[%clk 0:00:02]} 56. Kf2 {[%clk 0:00:35]}  Qxa3 {[%clk 0:00:02]} 57. Qc7+ {[%clk 0:00:30]}  Ke6 {[%clk 0:00:02]} 58. Bg8+ {[%clk 0:00:27]}  Kf5 {[%clk 0:00:03]} 59. Qc8+ {[%clk 0:00:20]}  Ke5 {[%clk 0:00:03]} 60. Qe8+ {[%clk 0:00:16]}  Kd4 {[%clk 0:00:02]} 61. Qe4+ {[%clk 0:00:16]}  Kc5 {[%clk 0:00:02]} 62. Qe3+ {[%clk 0:00:16]}  Kb4 {[%clk 0:00:00]} 63. Qxb3+ {[%clk 0:00:16]} 1-0


[Site "https://www.chess.com"]

[Event "Titled Tuesday Blitz June 13 Late 2023"]
[White "Nasuta, Grzegorz"]
[Black "Topalov, Aleksandar"]
[WhiteFideId "1141686"]
[BlackFideId "925659"]
[WhiteElo "2449"]
[BlackElo "2151"]
[Result "0-1"]
[Round "1"]
[TimeControl "180+2"]
[Date "2023.06.13"]
[WhiteClock "0:00:00"]
[BlackClock "0:00:39"]
[Board "106"]

1. e4 {[%clk 0:03:00]}  e6 {[%clk 0:02:57]} 2. d3 {[%clk 0:02:59]}  d5 {[%clk 0:02:50]} 3. Nd2 {[%clk 0:02:59]}  c5 {[%clk 0:02:49]} 4. Ngf3 {[%clk 0:02:58]}  Nc6 {[%clk 0:02:49]} 5. g3 {[%clk 0:02:51]}  Nf6 {[%clk 0:02:48]} 6. Bg2 {[%clk 0:02:51]}  Be7 {[%clk 0:02:48]} 7. O-O {[%clk 0:02:51]}  O-O {[%clk 0:02:48]} 8. Re1 {[%clk 0:02:46]}  b5 {[%clk 0:02:47]} 9. e5 {[%clk 0:02:42]}  Nd7 {[%clk 0:02:47]} 10. Nf1 {[%clk 0:02:42]}  a5 {[%clk 0:02:47]} 11. h4 {[%clk 0:02:41]}  b4 {[%clk 0:02:47]} 12. h5 {[%clk 0:02:39]}  Ba6 {[%clk 0:02:45]} 13. h6 {[%clk 0:02:39]}  g6 {[%clk 0:02:45]} 14. Bf4 {[%clk 0:02:33]}  a4 {[%clk 0:02:45]} 15. Qd2 {[%clk 0:02:26]}  Nd4 {[%clk 0:02:31]} 16. N1h2 {[%clk 0:02:19]}  b3 {[%clk 0:02:18]} 17. axb3 {[%clk 0:01:55]}  axb3 {[%clk 0:02:17]} 18. Nxd4 {[%clk 0:01:13]}  cxd4 {[%clk 0:02:13]} 19. Nf3 {[%clk 0:01:14]}  Qb6 {[%clk 0:01:46]} 20. c3 {[%clk 0:00:39]}  dxc3 {[%clk 0:01:37]} 21. bxc3 {[%clk 0:00:40]}  Rfc8 {[%clk 0:01:28]} 22. Rab1 {[%clk 0:00:33]}  Nc5 {[%clk 0:01:10]} 23. Bf1 {[%clk 0:00:33]}  Na4 {[%clk 0:01:07]} 24. Bg5 {[%clk 0:00:30]}  Bf8 {[%clk 0:01:07]} 25. Bf6 {[%clk 0:00:24]}  Nxc3 {[%clk 0:00:59]} 26. Qf4 {[%clk 0:00:08]}  Nxb1 {[%clk 0:00:54]} 27. Rxb1 {[%clk 0:00:09]}  Rab8 {[%clk 0:00:47]} 28. Ng5 {[%clk 0:00:00]}  Qc7 {[%clk 0:00:39]} 0-1


[Site "https://www.chess.com"]